bitfinex/quotes_SOLUSD_20251204
["timestamp","ask_amount","ask_price","bid_price","bid_amount"]
[1764822007607,9.51556631,144.27,144.24,0.68]
[1764822008811,10.19556631,144.27,144.24,0.68]
[1764822009796,8.80994492,144.26,144.23,8.32]
[1764822010005,9.48994492,144.26,144.23,8.32]
[1764822010380,9.48994492,144.26,144.23,7.64]
[1764822010381,11.39391142,144.26,144.23,7.64]
[1764822010586,0.68,144.25,144.23,7.64]
[1764822010798,18.32623898,144.26,144.23,7.64]
[1764822010998,19.00623898,144.26,144.23,7.64]
[1764822011195,18.32623898,144.26,144.23,7.64]
[1764822011397,18.32623898,144.26,144.24,0.68]
[1764822011585,40.39801357,144.27,144.24,0.68]
[1764822011789,2.5839665,144.29,144.24,3.2639665]
[1764822012101,16.308864,144.29,144.25,3.2639665]
[1764822012494,16.308864,144.29,144.26,0.69]
[1764822012728,7.64,144.31,144.26,3.2739665]
[1764822012894,27.70277542,144.31,144.26,10.20548313]
[1764822013089,28.39277542,144.31,144.27,0.69]
[1764822013501,25.80880892,144.31,144.27,0.69]
[1764822013686,28.39277542,144.31,144.27,0.69]
[1764822014204,27.70277542,144.31,144.27,0.69]
[1764822014404,28.39277542,144.31,144.27,0.69]
[1764822014994,35.32241665,144.31,144.27,0.69]
[1764822016209,10.20420596,144.3,144.27,0.69]
[1764822016395,2.5839665,144.29,144.26,0.69]
[1764822016588,3.2739665,144.29,144.26,0.69]
[1764822017110,3.2739665,144.29,144.24,9.51674356]
[1764822017286,6.93023946,144.3,144.24,7.62277706]
[1764822017287,12.08391142,144.28,144.24,7.62277706]
[1764822017494,12.08391142,144.28,144.24,0.69]
[1764822018184,12.08391142,144.28,144.24,7.62282014]
[1764822018791,19.01520321,144.28,144.25,0.69]
[1764822019513,18.32520321,144.28,144.25,0.69]
[1764822021602,19.01520321,144.28,144.25,0.69]
[1764822021799,2.5839665,144.3,144.25,10.20631126]
[1764822022033,18.8928305,144.3,144.26,2.5839665]
[1764822022193,18.8928305,144.3,144.27,0.69]
[1764822022398,19.5828305,144.3,144.27,0.69]
[1764822022916,2.5839665,144.29,144.27,0.69]
[1764822023414,2.5839665,144.29,144.25,6.93234476]
[1764822023714,2.5839665,144.29,144.26,0.69]
[1764822023715,9.51461761,144.29,144.26,0.69]
[1764822024528,16.998864,144.3,144.26,0.69]
[1764822024529,26.51289752,144.3,144.26,7.62192068]
[1764822024732,23.23893102,144.3,144.26,7.62192068]
[1764822024895,25.82289752,144.3,144.27,0.69]
[1764822025220,26.51289752,144.3,144.27,0.69]
[1764822026618,26.51289752,144.3,144.26,0.69]
[1764822029418,12.08391142,144.29,144.24,6.93282735]
[1764822029607,12.08391142,144.29,144.25,0.69]
[1764822031119,6.93096756,144.28,144.25,0.69]
[1764822031314,15.74054617,144.29,144.25,0.69]
[1764822031500,16.43054617,144.29,144.25,7.62237651]
[1764822031920,16.43054617,144.29,144.26,0.69]
[1764822032322,25.82294889,144.3,144.26,0.69]
[1764822032524,26.51294889,144.3,144.26,0.69]
[1764822033326,25.82294889,144.3,144.26,7.6218141]
[1764822033530,26.51294889,144.3,144.26,7.6218141]
[1764822033728,26.51294889,144.3,144.27,0.69]
[1764822036728,32.87590969,144.31,144.27,7.62123101]
[1764822036925,2.5839665,144.33,144.28,2.5839665]
[1764822037140,18.8928305,144.33,144.28,3.2739665]
[1764822037438,18.8928305,144.33,144.29,0.69]
[1764822037807,25.82165127,144.33,144.29,0.69]
[1764822038604,26.51165127,144.33,144.29,0.69]
[1764822038830,26.51165127,144.33,144.29,7.6204558]
[1764822039045,26.51165127,144.33,144.3,0.69]
[1764822041242,23.23768477,144.33,144.3,0.69]
[1764822042555,16.308864,144.33,144.3,0.69]
[1764822042764,23.23755942,144.33,144.3,0.69]
[1764822043451,16.308864,144.33,144.3,0.69]
[1764822044943,23.23744525,144.33,144.3,0.69]
[1764822045653,23.95744525,144.33,144.3,0.69]
[1764822046246,23.95744525,144.33,144.27,24.94780194]
[1764822046247,12.11391142,144.32,144.28,0.67]
[1764822047461,9.52994492,144.32,144.28,0.67]
[1764822048246,33.44141175,144.33,144.28,7.60076226]
[1764822048247,16.308864,144.33,144.28,7.60076226]
[1764822048452,16.308864,144.33,144.29,2.5839665]
[1764822048658,16.308864,144.33,144.29,3.2539665]
[1764822048856,16.308864,144.33,144.3,0.67]
[1764822049169,23.9575951,144.33,144.3,0.67]
[1764822050170,16.308864,144.33,144.3,0.67]
[1764822050482,23.23746462,144.33,144.3,0.67]
[1764822053060,16.308864,144.33,144.3,10.18394629]
[1764822053445,16.308864,144.33,144.31,0.67]
[1764822053641,16.308864,144.33,144.31,3.2539665]
[1764822054156,16.308864,144.33,144.32,0.67]
[1764822060069,23.23700558,144.34,144.32,0.67]
[1764822061066,6.92630478,144.38,144.33,2.5839665]
[1764822061264,6.92630478,144.38,144.34,2.5839665]
[1764822061569,19.73391142,144.39,144.35,2.5839665]
[1764822061570,15.73575809,144.39,144.35,2.5839665]
[1764822061777,32.04462209,144.39,144.36,0.67]
[1764822062162,32.76462209,144.39,144.36,0.67]
[1764822062860,32.04462209,144.39,144.36,0.67]
[1764822063059,36.79521748,144.39,144.36,0.67]
[1764822063980,23.23467717,144.39,144.36,0.67]
[1764822065474,4.03059539,144.37,144.33,0.67]
[1764822065875,4.75059539,144.37,144.33,0.67]
[1764822066069,9.52994492,144.36,144.33,0.67]
[1764822066578,13.56054031,144.36,144.32,8.29]
[1764822067569,20.48803301,144.36,144.32,8.29]
[1764822067958,20.48803301,144.36,144.33,0.67]
[1764822068278,20.48803301,144.36,144.32,7.62]
[1764822068279,4.75059539,144.35,144.32,7.62]
[1764822068583,4.75059539,144.35,144.32,8.29]
[1764822069592,11.67821777,144.35,144.32,8.29]
[1764822073582,6.92762238,144.35,144.32,8.29]
[1764822074882,20.43773474,144.36,144.33,0.7]
[1764822075475,4.70059539,144.35,144.32,8.32]
[1764822075675,16.40713935,144.36,144.32,0.7]
[1764822075870,19.76773474,144.36,144.32,0.7]
[1764822076074,0.67,144.35,144.32,0.7]
[1764822076386,19.76773474,144.36,144.32,0.7]
[1764822076566,20.43773474,144.36,144.32,0.7]
[1764822078168,20.43773474,144.36,144.3,18.58045161]
[1764822078169,4.70059539,144.35,144.3,18.58045161]
[1764822078368,4.70059539,144.35,144.31,0.7]
[1764822079081,11.62836776,144.35,144.31,0.7]
[1764822081494,0.67,144.34,144.31,0.7]
[1764822082800,11.62836776,144.35,144.31,0.7]
[1764822083098,0.67,144.34,144.31,0.7]
[1764822083273,4.70059539,144.34,144.31,0.7]
[1764822083473,4.03059539,144.34,144.31,0.7]
[1764822084496,4.70059539,144.33,144.29,15.25041331]
[1764822084694,4.70059539,144.33,144.29,6.93041331]
[1764822084872,4.70059539,144.33,144.3,0.7]
[1764822085074,4.03059539,144.32,144.3,0.7]
[1764822085312,11.62928648,144.33,144.3,0.7]
[1764822085979,10.95928648,144.33,144.3,0.7]
[1764822086790,6.92824006,144.34,144.3,0.7]
[1764822086978,11.62883545,144.34,144.3,0.7]
[1764822087510,16.308864,144.3,144.26,0.7]
[1764822087679,16.308864,144.3,144.24,0.7]
[1764822087680,4.03059539,144.28,144.24,0.7]
[1764822087886,4.03059539,144.28,144.24,7.63287863]
[1764822088189,4.03059539,144.28,144.24,15.25287863]
[1764822088388,10.9616567,144.28,144.25,0.7]
[1764822090202,8.80994492,144.27,144.25,0.7]
[1764822090505,4.03059539,144.26,144.23,0.7]
[1764822090703,25.11880892,144.3,144.26,6.93192846]
[1764822090916,8.80994492,144.32,144.26,14.55192846]
[1764822091206,25.11880892,144.32,144.28,4.03059539]
[1764822091403,25.78880892,144.32,144.28,4.03059539]
[1764822091579,32.7179421,144.32,144.28,4.73059539]
[1764822092990,32.7179421,144.32,144.28,4.03059539]
[1764822093195,32.7179421,144.32,144.29,0.7]
[1764822094603,32.7179421,144.32,144.28,4.73059539]
[1764822095010,0.67,144.31,144.28,0.7]
[1764822095216,36.74853749,144.32,144.28,0.7]
[1764822096213,12.84054031,144.3,144.26,0.7]
[1764822096417,12.84054031,144.3,144.25,4.73059539]
[1764822096589,27.94028583,144.29,144.25,0.7]
[1764822096793,27.94028583,144.29,144.26,0.7]
[1764822096994,23.90969044,144.29,144.26,0.7]
[1764822097183,27.94028583,144.29,144.26,0.7]
[1764822098318,27.94028583,144.29,144.23,0.7]
[1764822098319,4.03059539,144.27,144.23,0.7]
[1764822098494,4.03059539,144.26,144.23,0.7]
[1764822099006,4.70059539,144.26,144.23,0.7]
[1764822099918,11.63284353,144.26,144.22,0.7]
[1764822101412,10.96284353,144.26,144.22,0.7]
[1764822101605,7.60266191,144.25,144.22,0.7]
[1764822101908,6.93266191,144.25,144.22,0.7]
[1764822103115,10.9632573,144.25,144.22,0.7]
[1764822103315,6.93266191,144.25,144.22,0.7]
[1764822103497,10.9632573,144.25,144.22,0.7]
[1764822103894,0.69,144.24,144.21,7.61420533]
[1764822104216,11.65363986,144.24,144.2,15.23471992]
[1764822104518,10.96363986,144.24,144.21,0.68]
[1764822105505,4.03059539,144.25,144.21,7.61420492]
[1764822105712,10.96308541,144.25,144.21,7.61420492]
[1764822105921,10.96308541,144.25,144.22,0.67]
[1764822108802,11.67308541,144.25,144.22,0.67]
[1764822110206,10.96308541,144.25,144.22,0.67]
[1764822110409,4.03059539,144.25,144.22,0.67]
[1764822110909,10.96324269,144.25,144.22,0.67]
[1764822112508,11.67324269,144.25,144.22,0.67]
[1764822114498,4.74059539,144.25,144.22,0.67]
[1764822115523,4.03059539,144.25,144.22,0.67]
[1764822115931,0.71,144.25,144.22,0.67]
[1764822116234,4.03059539,144.25,144.22,0.67]
[1764822117326,4.74059539,144.25,144.22,0.67]
[1764822117523,0.71,144.25,144.22,0.67]
[1764822117722,4.03059539,144.25,144.22,0.67]
[1764822118326,4.74059539,144.25,144.22,0.67]
[1764822119412,11.67313429,144.25,144.22,0.67]
[1764822119813,10.96313429,144.25,144.21,10.96480031]
[1764822120013,11.67313429,144.25,144.22,0.67]
[1764822122426,0.71,144.24,144.21,11.63490243]
[1764822122827,10.96313429,144.25,144.21,10.96490243]
[1764822123025,11.67313429,144.25,144.21,10.96490243]
[1764822123227,11.67313429,144.25,144.22,0.67]
[1764822124316,10.22729279,144.25,144.22,0.67]
[1764822124532,9.51729279,144.25,144.22,0.67]
[1764822124841,2.58475389,144.25,144.22,0.67]
[1764822125443,9.51718182,144.25,144.22,0.67]
[1764822127850,2.58475389,144.25,144.22,0.67]
[1764822128146,6.93152991,144.27,144.23,2.58475389]
[1764822128438,7.64152991,144.27,144.23,2.58475389]
[1764822128638,7.64152991,144.27,144.24,0.67]
[1764822128824,10.2262838,144.27,144.24,0.67]
[1764822130520,9.5162838,144.27,144.22,9.51835541]
[1764822130717,10.22681526,144.26,144.23,0.67]
[1764822132241,3.29475389,144.25,144.21,0.67]
[1764822132441,2.58475389,144.24,144.21,0.67]
[1764822132842,3.25475389,144.24,144.21,0.67]
[1764822133143,2.58475389,144.25,144.21,0.67]
[1764822133348,3.25475389,144.25,144.21,0.67]
[1764822134251,10.18729962,144.25,144.21,7.60429233]
[1764822134546,11.39469881,144.24,144.2,7.62]
[1764822134753,2.58475389,144.23,144.2,0.66]
[1764822134944,3.25475389,144.23,144.18,28.35726288]
[1764822135147,0.67,144.22,144.19,0.66]
[1764822135353,3.25475389,144.23,144.19,0.66]
[1764822135536,2.58475389,144.21,144.18,25.77250899]
[1764822135732,11.39469881,144.21,144.18,25.77250899]
[1764822135930,3.25475389,144.2,144.18,25.77250899]
[1764822136147,9.52004759,144.19,144.18,25.77250899]
[1764822136537,9.5196272,144.2,144.18,26.43250899]
[1764822136743,10.1896272,144.2,144.18,25.77250899]
[1764822136951,0.67,144.27,144.19,3.24475389]
[1764822137247,0.67,144.27,144.23,2.58475389]
[1764822137248,8.80994492,144.26,144.23,2.58475389]
[1764822137449,25.11880892,144.26,144.23,2.58475389]
[1764822137829,25.78880892,144.26,144.23,3.24475389]
[1764822138057,25.11880892,144.26,144.24,0.66]
[1764822138257,32.05094804,144.26,144.24,0.66]
[1764822138438,32.05094804,144.26,144.23,2.58475389]
[1764822138646,32.72094804,144.26,144.23,3.24475389]
[1764822140036,32.72094804,144.26,144.23,0.66]
[1764822140957,16.308864,144.26,144.23,3.24475389]
[1764822141336,16.308864,144.26,144.24,3.24475389]
[1764822141846,16.308864,144.26,144.24,0.66]
[1764822142047,16.308864,144.26,144.25,0.66]
[1764822145933,16.308864,144.26,144.23,2.58475389]
[1764822145934,16.308864,144.26,144.24,0.69]
[1764822153679,23.24085514,144.26,144.24,0.69]
[1764822154066,26.51560903,144.26,144.23,0.69]
[1764822155075,16.308864,144.26,144.23,0.69]
[1764822155366,5.80465019,144.31,144.25,2.58475389]
[1764822155367,23.23950998,144.29,144.25,2.58475389]
[1764822155870,10.20485898,144.3,144.26,0.69]
[1764822156582,9.51485898,144.3,144.26,0.69]
[1764822156787,6.93010509,144.3,144.26,3.27475389]
[1764822157371,6.93010509,144.3,144.27,0.69]
[1764822157573,23.23855694,144.31,144.27,3.27475389]
[1764822157748,23.23855694,144.31,144.28,0.69]
[1764822157948,8.80994492,144.3,144.24,14.55256052]
[1764822158164,2.58475389,144.28,144.25,0.69]
[1764822159177,9.51572321,144.28,144.25,0.69]
[1764822159383,6.93096932,144.28,144.25,0.69]
[1764822159558,6.93096932,144.28,144.23,17.13797256]
[1764822159757,12.08469881,144.27,144.23,8.31]
[1764822160082,12.08469881,144.27,144.24,0.69]
[1764822160689,6.93192846,144.26,144.24,0.69]
[1764822160975,2.58475389,144.25,144.22,0.69]
[1764822161175,2.58475389,144.25,144.23,0.69]
[1764822161772,10.20668235,144.26,144.23,0.69]
[1764822165487,6.93192846,144.26,144.23,0.69]
[1764822175887,9.51668235,144.26,144.23,0.69]
[1764822176313,0.71,144.25,144.22,0.7]
[1764822176821,0.71,144.25,144.19,0.7]
[1764822176822,2.58475389,144.24,144.19,0.7]
[1764822176989,2.58475389,144.23,144.2,0.7]
[1764822177503,3.29475389,144.24,144.2,0.7]
[1764822178005,10.22789758,144.24,144.2,0.7]
[1764822179003,2.58475389,144.21,144.18,26.47250899]
[1764822179501,2.58475389,144.2,144.18,26.47250899]
[1764822179700,2.58475389,144.2,144.18,25.77250899]
[1764822180204,10.22983449,144.2,144.18,25.77250899]
[1764822180407,9.51983449,144.2,144.18,25.77250899]
[1764822180705,3.29475389,144.19,144.18,25.77250899]
[1764822180902,2.58475389,144.19,144.18,25.77250899]
[1764822182124,10.22983449,144.2,144.18,25.77250899]
[1764822182620,2.58475389,144.19,144.18,25.77250899]
[1764822182788,11.39469881,144.19,144.18,25.77250899]
[1764822182988,12.10469881,144.19,144.18,25.77250899]
[1764822183399,11.39469881,144.19,144.18,25.77250899]
[1764822183699,8.80994492,144.19,144.18,25.77250899]
[1764822184409,15.74523862,144.19,144.18,25.77250899]
[1764822185818,9.51968647,144.2,144.18,25.77250899]
[1764822186015,10.22968647,144.2,144.18,25.77250899]
[1764822186520,11.68651346,144.2,144.18,25.77250899]
[1764822195337,10.97687458,144.19,144.18,25.77250899]
[1764822197007,10.97687458,144.19,144.18,26.43250899]
[1764822197209,10.97687458,144.19,144.18,25.77250899]
[1764822197404,10.97687458,144.19,144.18,26.43250899]
[1764822197626,10.97687458,144.19,144.18,25.77250899]
[1764822197998,10.97687458,144.19,144.18,26.43250899]
[1764822198205,20.4868195,144.19,144.18,25.77250899]
[1764822198637,19.7868195,144.19,144.18,25.77250899]
[1764822199211,6.93497622,144.2,144.18,26.43250899]
[1764822199527,11.6765571,144.2,144.18,26.43250899]
[1764822199724,19.78650202,144.2,144.18,26.43250899]
[1764822200129,20.48650202,144.2,144.18,25.77250899]
[1764822200604,19.78650202,144.2,144.19,0.66]
[1764822200804,19.78650202,144.2,144.18,26.43250899]
[1764822201533,15.74492114,144.2,144.18,25.77250899]
[1764822201708,10.97599868,144.21,144.19,0.66]
[1764822206325,11.67599868,144.21,144.19,0.66]
[1764822207042,10.97599868,144.21,144.19,0.66]
[1764822207637,16.308864,144.19,144.18,26.43250899]
[1764822207835,16.308864,144.19,144.18,25.77250899]
[1764822208534,16.308864,144.21,144.18,26.43250899]
[1764822208725,16.308864,144.2,144.19,0.66]
[1764822209120,10.9750514,144.23,144.19,7.59514205]
[1764822209528,36.56108455,144.24,144.2,4.70158088]
[1764822209840,15.74293113,144.24,144.21,0.66]
[1764822214049,6.93298621,144.24,144.22,4.04158088]
[1764822214255,6.93298621,144.24,144.21,4.70158088]
[1764822214624,6.93298621,144.24,144.22,0.66]
[1764822216927,10.97456709,144.24,144.22,0.66]
[1764822219546,6.93298621,144.24,144.22,0.66]
[1764822220747,6.93257488,144.25,144.22,4.70158088]
[1764822220944,6.93257488,144.25,144.23,0.68]
[1764822223552,19.7836081,144.26,144.23,0.68]
[1764822223934,23.24032865,144.27,144.23,4.72158088]
[1764822224128,23.90032865,144.27,144.23,4.72158088]
[1764822224453,23.90032865,144.27,144.24,0.67]
[1764822226124,23.24032865,144.27,144.24,0.67]
[1764822226825,23.90032865,144.27,144.24,0.67]
[1764822227350,23.24032865,144.27,144.24,0.67]
[1764822228449,23.90032865,144.27,144.24,0.67]
[1764822229047,23.24032865,144.27,144.24,0.67]
[1764822229354,44.05126132,144.27,144.24,0.67]
[1764822229547,23.24032865,144.27,144.24,0.67]
[1764822229852,44.17193499,144.28,144.24,11.64445872]
[1764822230028,37.24087759,144.28,144.24,11.64445872]
[1764822230232,23.23950219,144.29,144.25,4.71158088]
[1764822230525,40.57444901,144.29,144.26,4.04158088]
[1764822230838,23.23950219,144.29,144.26,4.71158088]
[1764822231037,23.23950219,144.29,144.27,0.67]
[1764822232348,16.308864,144.29,144.27,0.67]
[1764822232849,16.308864,144.29,144.27,4.71158088]
[1764822233256,16.308864,144.29,144.28,0.67]
[1764822234135,27.73672771,144.3,144.28,0.67]
[1764822234333,44.04559171,144.3,144.28,0.67]
[1764822235037,4.70158088,144.29,144.25,0.67]
[1764822235249,4.70158088,144.29,144.26,0.67]
[1764822235440,11.63383425,144.29,144.26,0.67]
[1764822236251,6.93096756,144.28,144.26,0.67]
[1764822236836,7.59096756,144.28,144.25,0.67]
[1764822237059,19.25254844,144.28,144.25,0.67]
[1764822238051,18.59254844,144.28,144.25,0.67]
[1764822238641,9.46994492,144.27,144.24,7.62]
[1764822238955,13.5115258,144.27,144.23,0.67]
[1764822239132,21.1315258,144.27,144.23,0.67]
[1764822239337,0.66,144.26,144.23,0.67]
[1764822239953,39.03872841,144.27,144.23,0.67]
[1764822240150,0.66,144.26,144.23,0.67]
[1764822240342,10.97531476,144.26,144.23,0.67]
[1764822240649,11.63531476,144.26,144.23,0.67]
[1764822241558,0.66,144.25,144.21,4.71158088]
[1764822241861,7.59245564,144.25,144.21,11.64588011]
[1764822242159,7.59245564,144.25,144.22,0.67]
[1764822242568,11.63403652,144.25,144.22,0.67]
[1764822242780,0.66,144.24,144.21,0.67]
[1764822243559,11.63633522,144.24,144.21,0.67]
[1764822243759,0.66,144.24,144.21,0.67]
[1764822244140,22.61037174,144.25,144.21,0.67]
[1764822244355,0.66,144.24,144.21,0.67]
[1764822244671,11.63633522,144.24,144.21,0.67]
[1764822245164,15.6779161,144.24,144.2,7.60475434]
[1764822245553,15.6779161,144.24,144.19,7.62]
[1764822245554,12.8515258,144.23,144.19,7.62]
[1764822245757,13.5115258,144.23,144.19,8.29]
[1764822245951,13.5115258,144.23,144.2,0.67]
[1764822246146,30.28809834,144.23,144.2,0.67]
[1764822246753,8.80994492,144.23,144.2,0.67]
[1764822249247,16.40338487,144.23,144.2,0.67]
[1764822250076,37.22153829,144.23,144.2,0.67]
[1764822250380,36.56153829,144.23,144.2,0.67]
[1764822250770,8.80994492,144.23,144.2,0.67]
[1764822251368,15.74336522,144.23,144.2,0.67]
[1764822252161,16.40336522,144.23,144.2,0.67]
[1764822252384,37.22151864,144.23,144.2,0.67]
[1764822253181,0.66,144.28,144.22,2.58514852]
[1764822253377,8.80994492,144.27,144.24,2.58514852]
[1764822253577,8.80994492,144.27,144.23,3.24514852]
[1764822253750,0.66,144.27,144.23,3.24514852]
[1764822254072,32.73880892,144.28,144.24,0.66]
[1764822254267,40.33014119,144.28,144.24,0.66]
[1764822254657,42.91528971,144.28,144.24,0.66]
[1764822255058,40.33014119,144.28,144.24,7.59283637]
[1764822255255,42.91528971,144.28,144.24,7.59283637]
[1764822255475,42.91528971,144.28,144.25,0.66]
[1764822257445,35.29528971,144.28,144.25,0.66]
[1764822257959,34.63528971,144.28,144.25,0.66]
[1764822258166,16.308864,144.28,144.25,7.59225681]
[1764822258343,17.32424385,144.31,144.25,7.59225681]
[1764822258344,9.51501762,144.31,144.26,2.58514852]
[1764822258549,9.51501762,144.31,144.26,3.24514852]
[1764822258550,19.03300251,144.31,144.26,3.24514852]
[1764822258749,36.00186651,144.31,144.27,0.66]
[1764822258950,23.2387331,144.31,144.27,3.24514852]
[1764822259472,0.66,144.3,144.27,0.66]
[1764822259771,23.2387331,144.31,144.27,3.24514852]
[1764822260172,6.929103,144.32,144.28,3.24514852]
[1764822260667,6.929103,144.32,144.29,0.66]
[1764822264873,35.98395744,144.33,144.29,0.66]
[1764822264874,25.11880892,144.34,144.3,2.58514852]
[1764822265074,35.29490943,144.34,144.31,2.58514852]
[1764822265278,35.29490943,144.34,144.3,3.24514852]
[1764822265457,25.77880892,144.34,144.3,3.24514852]
[1764822265659,40.32924054,144.34,144.31,0.66]
[1764822266583,47.2576516,144.34,144.31,0.66]
[1764822268784,49.84280012,144.34,144.31,0.66]
[1764822268982,49.18280012,144.34,144.29,7.62]
[1764822269192,2.58514852,144.32,144.28,8.28]
[1764822269695,3.24514852,144.32,144.28,8.28]
[1764822269893,24.05030819,144.32,144.28,10.20514852]
[1764822270063,24.05030819,144.32,144.29,0.66]
[1764822270568,30.97981765,144.32,144.29,0.66]
[1764822271467,30.97981765,144.32,144.28,8.28]
[1764822271468,9.51465798,144.32,144.28,8.28]
[1764822271673,10.17465798,144.32,144.28,7.62]
[1764822271881,19.69089732,144.32,144.29,0.66]
[1764822272583,19.69089732,144.32,144.28,7.62]
[1764822272775,9.514725,144.31,144.28,8.28]
[1764822274363,9.514725,144.31,144.29,0.66]
[1764822274564,6.92957648,144.31,144.29,0.66]
[1764822275062,6.92957648,144.31,144.28,8.28]
[1764822275265,7.58957648,144.31,144.28,8.28]
[1764822275559,6.92957648,144.31,144.28,8.28]
[1764822275761,6.92957648,144.31,144.29,0.66]
[1764822276365,16.44581582,144.31,144.29,0.66]
[1764822276565,17.10581582,144.31,144.28,8.28]
[1764822276765,7.58957648,144.31,144.28,8.28]
[1764822276972,27.84037934,144.32,144.29,0.66]
[1764822277186,28.50037934,144.32,144.29,0.66]
[1764822277684,25.91523082,144.32,144.29,0.66]
[1764822277892,25.25523082,144.32,144.29,0.66]
[1764822279085,9.51623934,144.32,144.3,2.58514852]
[1764822279392,6.92868108,144.33,144.29,10.17562603]
[1764822279575,7.62,144.33,144.3,0.66]
[1764822279895,34.63210427,144.34,144.3,3.24514852]
[1764822279896,32.04695575,144.34,144.3,3.24514852]
[1764822280195,42.22258178,144.34,144.3,3.24514852]
[1764822280495,42.22258178,144.34,144.31,0.66]
[1764822280989,44.8077303,144.34,144.31,0.66]
[1764822283198,42.22258178,144.34,144.31,0.66]
[1764822283385,44.8077303,144.34,144.31,0.66]
[1764822286883,10.17379479,144.33,144.29,7.61032215]
[1764822287203,17.79379479,144.33,144.3,0.68]
[1764822287389,17.79379479,144.33,144.26,0.68]
[1764822287390,2.58514852,144.31,144.26,0.68]
[1764822287577,2.58514852,144.29,144.25,0.68]
[1764822287978,2.58514852,144.29,144.25,7.61228623]
[1764822288199,2.58514852,144.28,144.25,0.68]
[1764822288382,3.24514852,144.28,144.25,0.68]
[1764822288582,2.58514852,144.28,144.25,0.68]
[1764822289482,12.79029704,144.28,144.25,0.68]
[1764822290084,2.58514852,144.28,144.25,0.68]
[1764822291007,10.176177,144.28,144.25,0.68]
[1764822291785,7.59102848,144.28,144.25,0.68]
[1764822292109,10.176177,144.28,144.25,0.68]
[1764822295803,2.58514852,144.27,144.25,0.68]
[1764822296207,10.176177,144.28,144.25,0.68]
[1764822297201,2.58514852,144.27,144.25,0.68]
[1764822297409,10.176177,144.28,144.25,0.68]
[1764822298407,11.39509344,144.27,144.22,9.51884205]
[1764822298709,12.05509344,144.27,144.23,0.68]
[1764822298899,0.66,144.26,144.23,0.68]
[1764822299098,19.01509344,144.27,144.23,0.68]
[1764822299308,16.42994492,144.27,144.23,10.1984194]
[1764822299509,8.80994492,144.27,144.23,10.1984194]
[1764822299702,11.39509344,144.27,144.24,0.68]
[1764822299899,12.05509344,144.27,144.24,0.68]
[1764822300411,12.05509344,144.27,144.22,9.51888314]
[1764822300613,11.39509344,144.27,144.23,0.68]
[1764822300820,12.05509344,144.27,144.23,0.68]
[1764822301190,16.44944788,144.28,144.23,10.19837419]
[1764822301385,34.63458228,144.29,144.24,2.58514852]
[1764822301616,34.63458228,144.29,144.25,6.93240901]
[1764822301785,34.63458228,144.29,144.25,7.61240901]
[1764822301991,34.63458228,144.29,144.26,0.68]
[1764822302212,35.29458228,144.29,144.26,0.68]
[1764822302517,35.29458228,144.29,144.23,8.3]
[1764822302518,2.58514852,144.27,144.23,8.3]
[1764822302813,2.58514852,144.27,144.23,7.62]
[1764822303109,3.24514852,144.27,144.24,0.68]
[1764822303699,10.17667067,144.27,144.24,0.68]
[1764822304611,3.24514852,144.26,144.22,0.68]
[1764822304912,3.24514852,144.26,144.23,0.68]
[1764822305113,3.24514852,144.25,144.22,0.68]
[1764822305814,2.58514852,144.25,144.22,0.68]
[1764822306306,6.93207444,144.26,144.22,7.61370117]
[1764822306307,9.51722296,144.26,144.22,7.61370117]
[1764822306498,10.17722296,144.26,144.22,7.61370117]
[1764822306698,10.17722296,144.26,144.23,0.68]
[1764822307613,8.28,144.27,144.23,0.68]
[1764822307614,6.93148497,144.27,144.23,10.19848437]
[1764822307791,15.74142989,144.27,144.23,10.19848437]
[1764822307992,17.13622794,144.28,144.24,0.68]
[1764822308412,18.58795317,144.28,144.24,0.68]
[1764822308925,19.24795317,144.28,144.24,0.68]
[1764822309300,19.24795317,144.28,144.24,7.61279973]
[1764822309935,11.62795317,144.28,144.24,7.61279973]